bitfinex-derivatives/quotes_SOLF0:USTF0_20260108
["timestamp","ask_amount","ask_price","bid_price","bid_amount"]
[1767899957846,86.08,137.43,137.33,0.30419167]
[1767899958047,1.8126634,137.4,137.33,0.30419167]
[1767899958253,86.08,137.43,137.34,6.5588]
[1767899958454,1.8126634,137.4,137.34,6.5588]
[1767899959253,1.8126634,137.4,137.33,0.30419167]
[1767899959562,1.8126634,137.38,137.3,0.30419167]
[1767899962662,1.8126634,137.42,137.33,0.30419167]
[1767899962865,86.08,137.43,137.33,0.30419167]
[1767899962866,1.8126634,137.4,137.33,0.30419167]
[1767899963371,8.3687634,137.4,137.34,6.5589]
[1767899963558,8.3687634,137.4,137.33,0.30419167]
[1767899964556,8.3687634,137.4,137.33,6.86359167]
[1767899965663,1.8126634,137.4,137.35,6.5584]
[1767899966059,1.8126634,137.41,137.33,0.30419167]
[1767899967568,8.3683634,137.41,137.34,6.5589]
[1767899969264,86.08,137.43,137.34,0.30419167]
[1767899969465,1.8126634,137.41,137.34,0.30419167]
[1767899970169,1.8126634,137.41,137.36,6.5575]
[1767899970366,86.08,137.43,137.35,0.30419167]
[1767899970367,87.8926634,137.43,137.35,0.30419167]
[1767899970668,1.8126634,137.43,137.35,0.30419167]
[1767899971555,1.8126634,137.43,137.37,6.5575]
[1767899971758,6.5544,137.44,137.37,6.5575]
[1767899971955,8.3670634,137.44,137.37,6.5575]
[1767899972159,8.3670634,137.44,137.38,6.5569]
[1767899973070,6.5538,137.45,137.38,6.5569]
[1767899973276,6.5538,137.45,137.38,6.86756106]
[1767899973766,92.6132,137.46,137.39,6.86716106]
[1767899974169,1.8126634,137.45,137.39,0.31066106]
[1767899975571,8.3663634,137.45,137.39,0.31066106]
[1767899975772,1.8126634,137.45,137.39,0.31066106]
[1767899976160,1.8126634,137.45,137.39,6.86706106]
[1767899977974,1.8126634,137.45,137.4,6.86636106]
[1767899978173,1.8126634,137.47,137.4,6.86636106]
[1767899978571,1.8126634,137.47,137.41,6.5553]
[1767899979465,1.8126634,137.47,137.41,6.86596106]
[1767899981077,6.5523,137.48,137.41,6.86596106]
[1767899981970,1.8126634,137.49,137.42,6.555]
[1767899983579,8.3644634,137.49,137.42,6.555]
[1767899983878,1.8126634,137.49,137.42,6.555]
[1767899984076,1.8126634,137.49,137.43,6.5544]
[1767899984480,1.8126634,137.49,137.42,0.31066106]
[1767899985681,8.3644634,137.49,137.42,6.86566106]
[1767899985881,86.06,137.51,137.42,0.31066106]
[1767899986074,1.8126634,137.5,137.42,0.31066106]
[1767899986278,6.5518,137.49,137.42,0.31066106]
[1767899987582,6.5518,137.49,137.42,6.86576106]
[1767899988676,1.8126634,137.5,137.43,6.5545]
[1767899989281,1.8126634,137.5,137.43,6.86516106]
[1767899989481,1.8126634,137.5,137.44,6.86456106]
[1767899989886,86.06,137.51,137.44,0.31066106]
[1767899990084,1.8126634,137.49,137.44,0.31066106]
[1767899990481,8.3645634,137.49,137.44,0.31066106]
[1767899996297,1.8126634,137.47,137.4,0.31066106]
[1767899998687,6.5536,137.46,137.4,0.31066106]
[1767899999294,6.5536,137.46,137.39,6.5565]
[1767900000798,6.5536,137.46,137.39,6.86716106]
[1767900001398,6.5536,137.46,137.4,0.31066106]
[1767900004399,1.8126634,137.41,137.35,0.32770301]
[1767900004592,103.4105,137.45,137.35,0.32770301]
[1767900004593,1.8126634,137.43,137.35,0.32770301]
[1767900004792,86.02,137.46,137.37,0.32770301]
[1767900004793,6.5542,137.44,137.37,0.32770301]
[1767900005395,8.3664634,137.45,137.38,6.88460301]
[1767900005894,6.5538,137.45,137.38,6.88460301]
[1767900008301,94.3858634,137.46,137.39,0.2999757]
[1767900009507,1.8126634,137.5,137.41,1.8126634]
[1767900009801,1.8126634,137.52,137.42,0.2999757]
[1767900010201,1.8126634,137.52,137.43,0.2999757]
[1767900010501,1.8126634,137.53,137.43,2.1126391]
[1767900010695,6.5504,137.52,137.44,6.8540757]
[1767900013501,2.82581829,137.52,137.42,6.8546757]
[1767900014002,88.84581829,137.52,137.42,6.8546757]
[1767900014691,6.5515,137.5,137.42,6.8546757]
[1767900015102,2.82581829,137.5,137.4,0.2999757]
[1767900015703,88.84581829,137.5,137.4,0.2999757]
[1767900015899,6.5528,137.47,137.4,0.2999757]
[1767900016303,6.5528,137.47,137.4,6.8559757]
[1767900017518,6.5522,137.49,137.4,6.8559757]
[1767900017807,88.84581829,137.5,137.4,6.8559757]
[1767900018416,6.5523,137.48,137.41,6.5555]
[1767900020507,95.39751829,137.5,137.42,0.2999757]
[1767900020710,88.84581829,137.5,137.42,0.2999757]
[1767900021408,6.5519,137.49,137.42,6.8550757]
[1767900023409,6.5524,137.48,137.4,15.90284236]
[1767900023612,88.84581829,137.5,137.4,15.90284236]
[1767900024616,6.5527,137.47,137.4,15.90284236]
[1767900025614,6.5522,137.49,137.41,6.8555757]
[1767900026023,6.5522,137.49,137.41,0.2999757]
[1767900027619,6.5522,137.49,137.42,6.555]
[1767900028919,2.82581829,137.48,137.39,9.34714236]
[1767900029616,2.82581829,137.48,137.4,0.2999757]
[1767900029817,187.934,137.5,137.4,0.2999757]
[1767900029818,88.84581829,137.5,137.4,0.2999757]
[1767900030018,88.84581829,137.5,137.41,0.2999757]
[1767900030416,6.5523,137.48,137.41,6.8555757]
[1767900034224,6.5518,137.5,137.42,0.31373426]
[1767900034621,88.84581829,137.53,137.43,0.31373426]
[1767900035221,88.84581829,137.53,137.44,0.31373426]
[1767900035627,6.5508,137.51,137.45,6.86743426]
[1767900037331,2.82581829,137.57,137.47,0.31373426]
[1767900037533,86.02,137.56,137.47,0.31373426]
[1767900037729,6.5495,137.54,137.47,0.31373426]
[1767900038335,6.5495,137.54,137.47,6.86643426]
[1767900039931,88.84581829,137.57,137.45,9.04716666]
[1767900040126,9.37631829,137.52,137.43,0.31373426]
[1767900040937,6.5509,137.51,137.43,6.86803426]
[1767900041126,6.5509,137.51,137.43,0.31373426]
[1767900042534,6.5509,137.51,137.44,6.5541]
[1767900042938,2.82581829,137.52,137.44,0.31373426]
[1767900044534,9.37621829,137.52,137.45,6.5535]
[1767900045940,9.37621829,137.52,137.45,6.86723426]
[1767900046239,88.82581829,137.54,137.46,6.86673426]
[1767900046431,88.82581829,137.54,137.46,0.31373426]
[1767900046632,86.0,137.54,137.46,0.31373426]
[1767900047632,92.5496,137.54,137.47,6.86643426]
[1767900048035,86.0,137.54,137.47,0.31373426]
[1767900048240,88.82581829,137.54,137.45,6.86693426]
[1767900049640,6.5503,137.52,137.45,6.86693426]
[1767900050642,92.5498,137.54,137.47,0.31373426]
[1767900051340,6.5504,137.52,137.45,6.86693426]
[1767900051541,86.0,137.54,137.45,0.31373426]
[1767900052638,6.5499,137.53,137.46,6.86693426]
[1767900054144,6.5499,137.53,137.47,6.5527]
[1767900054834,6.5499,137.53,137.47,6.86643426]
[1767900055036,86.0,137.54,137.44,110.99846666]
[1767900055237,86.0,137.54,137.46,0.31373426]
[1767900055542,92.5494,137.54,137.47,0.31373426]
[1767900057337,6.5494,137.54,137.47,0.31373426]
[1767900057537,6.5494,137.54,137.47,6.86633426]
[1767900058241,6.5489,137.55,137.49,6.5517]
[1767900061443,6.5489,137.55,137.47,6.86613426]
[1767900061749,6.5489,137.55,137.48,0.31373426]
[1767900062445,6.5489,137.55,137.48,6.86553426]
[1767900067958,6.5489,137.55,137.49,0.31893082]
[1767900068958,92.5282,137.57,137.5,0.31893082]
[1767900069162,85.98,137.57,137.5,0.31893082]
[1767900069554,85.98,137.57,137.5,6.87003082]
[1767900070559,92.5282,137.57,137.5,6.87003082]
[1767900072869,92.5282,137.57,137.51,6.5508]
[1767900072870,85.98,137.57,137.51,6.5508]
[1767900073364,6.5475,137.58,137.51,6.86973082]
[1767900074459,8.35434927,137.58,137.51,6.86973082]
[1767900074659,8.35434927,137.58,137.46,101.9365]
[1767900074660,8.35534927,137.56,137.49,6.87033082]
[1767900075359,8.35484927,137.57,137.5,6.87013082]
[1767900076963,6.5485,137.56,137.5,6.87013082]
[1767900079770,6.5485,137.56,137.5,0.31893082]
[1767900080070,1.80684927,137.55,137.48,0.31893082]
[1767900080272,1.80684927,137.53,137.46,9.36609748]
[1767900080464,1.80684927,137.53,137.46,0.31893082]
[1767900081170,6.5504,137.52,137.46,0.31893082]
[1767900081367,1.80684927,137.53,137.46,0.31893082]
[1767900081968,101.8689,137.56,137.46,0.31893082]
[1767900081969,1.80684927,137.52,137.46,0.31893082]
[1767900082271,1.80684927,137.52,137.44,95.32609748]
[1767900082770,1.80684927,137.52,137.45,6.87263082]
[1767900084469,1.80684927,137.52,137.46,6.5532]
[1767900084672,1.80684927,137.52,137.45,0.31893082]
[1767900084874,1.80684927,137.54,137.46,0.31893082]
[1767900085167,1.80684927,137.54,137.47,0.31893082]
[1767900085965,1.80684927,137.54,137.48,0.31893082]
[1767900086167,8.35484927,137.57,137.48,0.31893082]
[1767900086764,8.35484927,137.57,137.49,0.31893082]
[1767900086972,6.5486,137.56,137.49,0.31893082]
[1767900087174,1.80684927,137.57,137.49,0.31893082]
[1767900087765,1.80684927,137.55,137.47,0.31893082]
[1767900088578,1.80684927,137.55,137.48,6.5522]
[1767900088875,1.80684927,137.55,137.48,0.31893082]
[1767900090577,1.80684927,137.55,137.49,6.5518]
[1767900090776,1.80684927,137.55,137.48,0.31893082]
[1767900091380,1.80684927,137.55,137.46,9.04716666]
[1767900091381,1.80684927,137.53,137.46,0.31893082]
[1767900092677,1.80684927,137.53,137.47,6.8645848]
[1767900092878,1.80684927,137.53,137.47,0.3118848]
[1767900094679,1.80684927,137.53,137.48,6.5522]
[1767900095075,8.35574927,137.55,137.48,6.8640848]
[1767900095976,1.80684927,137.55,137.49,6.5517]
[1767900096978,1.80684927,137.55,137.5,6.5512]
[1767900098378,1.80684927,137.55,137.49,0.3118848]
[1767900099180,1.80684927,137.55,137.49,6.8631848]
[1767900100379,1.80684927,137.55,137.5,6.5512]
[1767900100581,1.80684927,137.57,137.51,0.3118848]
[1767900101174,1.80684927,137.55,137.49,0.3118848]
[1767900101879,8.35584927,137.55,137.48,9.04716666]
[1767900102282,8.35584927,137.55,137.48,15.59926666]
[1767900102484,1.80684927,137.53,137.46,9.04716666]
[1767900102685,1.80684927,137.53,137.46,9.35905146]
[1767900103575,8.35684927,137.53,137.46,15.91225146]
[1767900105685,1.80684927,137.53,137.47,6.8644848]
[1767900105886,6.5493,137.55,137.47,0.3118848]
[1767900105887,8.35614927,137.55,137.47,0.3118848]
[1767900106685,6.5485,137.56,137.49,0.3118848]
[1767900107077,203.6264,137.64,137.5,0.3118848]
[1767900107078,1.80684927,137.58,137.5,0.3118848]
[1767900107280,6.5485,137.56,137.5,0.3118848]
[1767900107889,1.80684927,137.56,137.48,9.35905146]
[1767900108982,6.5494,137.54,137.48,15.91125146]
[1767900109188,8.35624927,137.54,137.48,0.3118848]
[1767900109992,8.35624927,137.54,137.47,9.04716666]
[1767900110689,6.5494,137.54,137.47,9.04716666]
[1767900110887,8.35624927,137.54,137.47,9.04716666]
[1767900111389,1.80684927,137.52,137.46,9.04716666]
[1767900111580,1.80684927,137.52,137.45,9.04716666]
[1767900112594,8.35724927,137.52,137.45,15.60036666]
[1767900112991,8.35724927,137.52,137.45,15.91225146]
[1767900113593,6.5508,137.51,137.45,9.04716666]
[1767900113995,1.80684927,137.5,137.45,9.04716666]
[1767900114295,1.80684927,137.5,137.43,0.3118848]
[1767900115589,8.35814927,137.5,137.43,0.3118848]
[1767900116188,1.80684927,137.48,137.43,0.3118848]
[1767900118095,1.80684927,137.48,137.42,6.5549]
[1767900118594,1.80684927,137.48,137.43,6.5546]
[1767900120990,13.0951,137.58,137.45,0.3118848]
[1767900121186,1.80684927,137.53,137.45,0.3118848]
[1767900122193,1.80684927,137.51,137.45,0.3118848]
[1767900122990,6.5504,137.52,137.45,0.3118848]
[1767900123191,1.80684927,137.51,137.45,0.3118848]
[1767900123895,187.8688,137.56,137.45,6.8654848]
[1767900124088,1.80684927,137.52,137.45,6.8654848]
[1767900124705,187.8688,137.56,137.45,6.8654848]
[1767900125003,8.35684927,137.53,137.46,6.5532]
[1767900127910,8.35684927,137.53,137.46,6.87818768]
[1767900128306,6.55,137.53,137.47,0.32498768]
[1767900129305,6.5494,137.55,137.48,0.32498768]
[1767900129804,94.35534927,137.56,137.49,6.87668768]
[1767900130406,94.35534927,137.56,137.5,0.32498768]
[1767900130709,94.35534927,137.56,137.5,6.87608768]
[1767900130710,86.0,137.56,137.5,6.87608768]
[1767900133006,86.0,137.56,137.51,0.32498768]
[1767900134410,86.0,137.56,137.51,6.87568768]
[1767900134605,6.5474,137.59,137.51,6.87568768]
[1767900134811,87.78684927,137.6,137.51,6.87568768]
[1767900135409,92.5269,137.6,137.52,6.87528768]
[1767900139206,92.5269,137.6,137.52,0.32498768]
[1767900139412,85.98,137.6,137.53,0.32498768]
[1767900140710,85.98,137.6,137.54,6.5493]
[1767900144216,6.5456,137.63,137.55,6.87388768]
[1767900144518,85.96,137.63,137.55,6.87388768]
[1767900144816,6.5462,137.61,137.54,6.5489]
[1767900145612,6.5466,137.6,137.52,6.5499]
[1767900145920,2.82203878,137.62,137.52,0.32498768]
[1767900146511,6.546,137.62,137.52,0.32498768]
[1767900146923,2.82203878,137.66,137.54,0.32498768]
[1767900147122,85.96,137.63,137.54,0.32498768]
[1767900147519,85.96,137.63,137.57,6.5478]
[1767900147813,85.96,137.63,137.56,0.32498768]
[1767900148618,92.504,137.66,137.56,0.32498768]
[1767900148811,6.5442,137.65,137.57,6.5475]
[1767900149015,6.5442,137.65,137.57,6.87248768]
[1767900151322,85.96,137.66,137.58,0.32498768]
[1767900152222,92.5037,137.66,137.59,6.5468]
[1767900154016,6.5431,137.68,137.6,6.5465]
[1767900154217,2.82203878,137.67,137.56,0.33018653]
[1767900155225,6.5441,137.66,137.57,0.33018653]
[1767900155427,2.82203878,137.67,137.57,0.33018653]
[1767900155921,85.94,137.68,137.57,0.33018653]
[1767900156220,6.5433,137.67,137.6,6.5463]
[1767900158727,6.5433,137.67,137.59,0.33018653]
[1767900160623,6.5433,137.67,137.59,6.87708653]
[1767900161136,6.5437,137.66,137.59,6.87708653]
[1767900162735,92.4832,137.68,137.6,6.5465]
[1767900162931,85.94,137.68,137.6,6.5465]
[1767900163431,85.94,137.68,137.61,0.33018653]
[1767900164736,85.94,137.68,137.62,0.33018653]
[1767900166533,92.483,137.68,137.62,0.33018653]
[1767900167434,6.5432,137.67,137.62,0.33018653]
[1767900171637,85.9,137.68,137.62,0.33018653]
[1767900172224,92.4428,137.68,137.62,0.33018653]
[1767900174938,6.5428,137.68,137.62,0.33018653]
[1767900175130,92.4428,137.68,137.62,0.33018653]
[1767900175526,92.4428,137.68,137.61,6.546]
[1767900175937,2.82203878,137.66,137.59,6.5469]
[1767900176443,88.72203878,137.68,137.59,6.87708653]
[1767900177529,6.5437,137.66,137.59,6.87708653]
[1767900178529,95.26513878,137.68,137.6,0.33018653]
[1767900178733,92.4431,137.68,137.6,0.33018653]
[1767900179536,6.5432,137.67,137.61,6.5459]
[1767900183745,95.26473878,137.68,137.61,6.8753116]
[1767900184840,95.26473878,137.68,137.58,9.04716666]
[1767900184841,6.5435,137.67,137.59,0.3294116]
[1767900186546,6.5438,137.66,137.59,0.3294116]
[1767900187643,190.50233878,137.68,137.57,9.37657826]
[1767900187842,2.82203878,137.65,137.57,0.3294116]
[1767900188149,6.5451,137.63,137.55,15.92507826]
[1767900188339,6.5451,137.63,137.55,9.37657826]
[1767900188850,6.5451,137.63,137.56,0.3294116]
[1767900189343,6.5451,137.63,137.56,9.37657826]
[1767900189545,6.5451,137.63,137.56,15.92497826]
[1767900189945,88.72203878,137.63,137.55,9.04716666]
[1767900190155,88.72203878,137.63,137.54,0.3294116]
[1767900190156,2.82203878,137.61,137.54,0.3294116]
[1767900190743,9.36823878,137.61,137.54,6.8785116]
[1767900191945,95.26753878,137.63,137.56,0.3079112]
[1767900192345,92.4455,137.63,137.56,0.3079112]
[1767900193541,92.4455,137.63,137.56,6.8563112]
[1767900195050,9.36653878,137.65,137.58,0.3079112]
[1767900195252,6.5445,137.65,137.58,0.3079112]
[1767900196551,1.80519453,137.64,137.58,6.8554112]
[1767900197050,6.5445,137.65,137.58,6.8554112]
[1767900197350,1.80519453,137.64,137.58,6.8554112]
[1767900203754,1.80519453,137.64,137.59,6.8549112]
[1767900205942,94.26889453,137.66,137.59,6.8549112]
[1767900206754,1.80519453,137.64,137.58,6.5475]
[1767900207557,8.34989453,137.64,137.57,6.8558112]
[1767900207757,1.80519453,137.62,137.57,6.5479]
[1767900214357,1.80519453,137.62,137.57,6.85721919]
[1767900214558,1.80519453,137.62,137.57,0.30931919]
[1767900217759,8.35089453,137.62,137.56,6.5482]
[1767900220965,85.92,137.63,137.56,6.85751919]
[1767900221163,1.80519453,137.62,137.57,0.30931919]
[1767900222154,1.80519453,137.62,137.57,6.85731919]
[1767900223467,1.80519453,137.62,137.57,0.30931919]
[1767900224268,8.35089453,137.62,137.57,0.30931919]
[1767900224663,1.80519453,137.62,137.57,0.30931919]
[1767900225454,1.80519453,137.62,137.57,6.85721919]
[1767900226062,101.7808,137.68,137.61,6.85521919]
[1767900226063,6.5428,137.68,137.61,6.85521919]
[1767900226255,1.80519453,137.68,137.61,0.30931919]
[1767900226461,1.80519453,137.69,137.61,0.30931919]
[1767900226768,15.14724767,137.7,137.63,6.85431919]
[1767900226966,15.14724767,137.7,137.64,0.30931919]
[1767900227468,13.34205314,137.7,137.64,0.30931919]
[1767900228558,13.34205314,137.7,137.64,6.85391919]
[1767900228968,13.34205314,137.7,137.65,0.30931919]
[1767900230576,13.34205314,137.7,137.63,0.30931919]
[1767900232680,19.88385314,137.7,137.63,6.85431919]
[1767900233669,8.34779453,137.69,137.63,0.30931919]
[1767900236086,1.80519453,137.67,137.6,0.30931919]
[1767900236380,87.70519453,137.67,137.6,0.30931919]
[1767900237480,8.34849453,137.67,137.6,6.85581919]
[1767900240380,1.80519453,137.67,137.6,6.85581919]
[1767900240884,1.80519453,137.69,137.62,0.30931919]
[1767900241069,87.70519453,137.69,137.62,0.30931919]
[1767900242784,1.80519453,137.67,137.62,0.30931919]
[1767900244781,8.34839453,137.67,137.62,0.30931919]
[1767900245279,6.5437,137.66,137.6,0.31668479]
[1767900245489,1.80519453,137.65,137.58,9.3516417]
[1767900245782,1.80519453,137.65,137.58,0.30447504]
[1767900245983,6.5447,137.64,137.58,0.30447504]
[1767900247089,87.70519453,137.65,137.55,9.3516417]
[1767900247090,8.35049453,137.63,137.55,9.3516417]
[1767900247583,94.25049453,137.63,137.55,9.3516417]
[1767900247887,94.25049453,137.63,137.56,0.30447504]
[1767900248088,6.5456,137.62,137.56,6.85287504]
[1767900250390,87.70519453,137.63,137.56,6.85287504]
[1767900251594,94.25029453,137.63,137.56,6.85287504]
[1767900252689,6.5456,137.62,137.54,0.30447504]
[1767900254587,6.5456,137.62,137.55,6.85297504]
[1767900257603,1.80519453,137.61,137.55,6.85297504]
[1767900257900,1.80519453,137.61,137.56,6.5484]
[1767900258499,92.4651,137.63,137.56,6.5484]
[1767900259604,92.4651,137.63,137.57,6.5479]
[1767900260904,85.92,137.63,137.58,6.5475]
[1767900261104,2.82168694,137.64,137.58,6.5475]
[1767900261293,85.92,137.64,137.58,6.5475]
[1767900262305,92.4648,137.64,137.58,6.5475]
[1767900263106,6.5452,137.63,137.57,0.30447504]
[1767900263298,6.5452,137.63,137.56,6.548]
[1767900263904,2.82168694,137.61,137.51,9.04716666]
[1767900264108,2.82168694,137.61,137.5,0.30447504]
[1767900264610,85.92,137.6,137.5,0.30447504]
[1767900264799,85.92,137.59,137.5,0.30447504]
[1767900264997,85.92,137.59,137.51,6.85527504]
[1767900266709,92.4671,137.59,137.51,6.85527504]
[1767900266908,88.74168694,137.59,137.51,6.85527504]
[1767900267311,2.82168694,137.59,137.51,6.85527504]
[1767900267509,85.92,137.58,137.51,6.85527504]
[1767900268515,92.4675,137.58,137.51,6.5508]
[1767900268705,6.5475,137.58,137.51,6.5508]
[1767900269012,92.4875,137.58,137.51,6.5508]
[1767900269414,85.94,137.58,137.52,6.5503]
[1767900270807,88.76168694,137.59,137.52,6.5503]
[1767900278610,88.76168694,137.59,137.52,6.87609634]
[1767900278921,85.94,137.59,137.52,6.87609634]
[1767900279113,6.5466,137.6,137.52,6.87609634]
[1767900279416,85.94,137.59,137.52,6.87609634]
[1767900281013,85.94,137.59,137.53,0.32579634]
[1767900283514,6.5461,137.61,137.53,0.32579634]
[1767900283713,92.4861,137.61,137.53,0.32579634]
[1767900284519,92.4861,137.61,137.53,6.87519634]
[1767900285027,95.30778694,137.61,137.53,6.87519634]
[1767900285524,6.5466,137.6,137.53,6.87519634]
[1767900285723,88.76168694,137.61,137.51,0.32579634]
[1767900286627,6.547,137.59,137.52,6.5502]
[1767900288327,6.547,137.59,137.53,6.5498]
[1767900288915,6.547,137.59,137.52,0.32579634]
[1767900289420,6.5476,137.58,137.5,0.32579634]
[1767900289822,92.4876,137.58,137.5,0.32579634]
[1767900290630,92.4876,137.58,137.51,6.5506]
[1767900292030,92.4876,137.58,137.51,6.87639634]
[1767900295537,92.4876,137.58,137.52,6.87599634]
[1767900295736,6.5476,137.58,137.52,6.87599634]
[1767900297235,2.82168694,137.59,137.53,6.5498]
[1767900297430,85.96,137.59,137.53,6.5498]
[1767900298541,85.96,137.59,137.54,6.5494]
[1767900300834,85.96,137.59,137.55,6.5489]
[1767900301337,85.96,137.6,137.55,6.5489]
[1767900304054,85.96,137.62,137.55,0.31873091]
[1767900304540,85.96,137.64,137.57,0.31873091]
[1767900305045,85.96,137.64,137.58,0.31873091]
[1767900305747,85.96,137.64,137.59,6.5469]
[1767900306636,6.5441,137.66,137.59,6.5469]
[1767900306843,85.94,137.65,137.59,6.5469]
[1767900308647,85.94,137.65,137.56,6.79396629]
[1767900309145,85.94,137.64,137.56,6.79396629]
[1767900309547,85.94,137.64,137.58,6.5473]
[1767900310149,2.82168694,137.63,137.56,6.548]
[1767900310344,2.82168694,137.63,137.54,7.10872588]
[1767900310749,85.94,137.62,137.54,7.10872588]
[1767900310944,85.94,137.62,137.54,6.79396629]
[1767900311146,2.82168694,137.59,137.52,6.79396629]
[1767900311341,2.82168694,137.57,137.52,6.79396629]
[1767900311547,2.82168694,137.57,137.51,13.34476629]
[1767900312049,85.94,137.56,137.49,6.79396629]
[1767900312249,85.94,137.56,137.51,6.5508]
[1767900312840,85.94,137.56,137.49,7.10872588]
[1767900313453,85.94,137.56,137.49,0.31475959]
[1767900313949,85.94,137.56,137.49,7.10872588]
[1767900314148,85.94,137.56,137.51,6.5508]
[1767900315143,85.94,137.57,137.52,6.5503]
[1767900315746,85.94,137.58,137.52,6.5503]
[1767900316250,85.94,137.58,137.5,13.34486629]
[1767900316443,2.82168694,137.59,137.5,13.65962588]
[1767900316649,85.94,137.58,137.5,13.65962588]
[1767900317655,92.4875,137.58,137.5,13.65962588]
[1767900319351,92.4875,137.58,137.51,6.5508]
[1767900320449,92.4875,137.58,137.51,13.34476629]
[1767900320654,1.80726539,137.57,137.51,13.34476629]
[1767900321757,87.74726539,137.57,137.51,13.34476629]
[1767900324564,87.74726539,137.57,137.52,6.5503]
[1767900324754,1.80726539,137.57,137.52,0.31475959]
[1767900324956,87.76726539,137.59,137.53,0.31475959]
[1767900325251,1.80726539,137.59,137.53,0.31475959]
[1767900325458,87.76726539,137.59,137.53,0.31475959]
[1767900326264,87.76726539,137.59,137.53,6.5499]
[1767900327156,94.31426539,137.59,137.53,6.5499]
[1767900328368,1.80726539,137.57,137.53,6.5499]
[1767900330061,1.80726539,137.57,137.5,9.04716666]
[1767900330062,1.80726539,137.57,137.5,6.79396629]
[1767900330268,1.80726539,137.55,137.5,6.79396629]
[1767900330464,1.80726539,137.53,137.48,6.79396629]
[1767900331571,1.80726539,137.53,137.48,13.34616629]
[1767900331776,1.80726539,137.53,137.48,6.79396629]
[1767900332071,1.80726539,137.53,137.47,7.10872588]
[1767900332261,1.80726539,137.53,137.47,13.66132588]
[1767900332464,1.80726539,137.53,137.47,7.10872588]
[1767900332664,1.80726539,137.53,137.48,6.79396629]
[1767900333671,1.80726539,137.53,137.48,13.34606629]
[1767900333872,1.80726539,137.53,137.48,6.5521]
[1767900334568,1.80726539,137.53,137.48,13.34606629]
[1767900335976,1.80726539,137.53,137.48,6.5521]
[1767900337375,1.80726539,137.53,137.49,6.5517]
[1767900338269,1.80726539,137.51,137.47,6.5523]
[1767900338670,6.5495,137.54,137.47,6.5523]
[1767900338671,85.96,137.52,137.47,6.5523]
[1767900338873,85.96,137.52,137.48,6.5522]
[1767900339076,1.80726539,137.53,137.48,6.5522]
[1767900339277,87.76726539,137.53,137.49,6.5517]
[1767900339576,1.80726539,137.53,137.49,6.5517]
[1767900339968,87.76726539,137.55,137.49,6.5517]
[1767900341175,1.80726539,137.53,137.49,6.5517]
[1767900341479,1.80726539,137.51,137.45,0.32303777]
[1767900342070,1.80726539,137.53,137.47,0.32303777]
[1767900342874,87.78726539,137.54,137.47,0.32303777]
[1767900343182,1.80726539,137.52,137.45,0.32303777]
[1767900344182,1.80726539,137.52,137.47,6.5527]
[1767900348084,1.80726539,137.52,137.45,6.87633777]
[1767900348486,87.78726539,137.52,137.46,6.5532]
[1767900350374,87.78726539,137.52,137.47,6.5527]
[1767900350770,87.78726539,137.52,137.45,0.32303777]
[1767900351181,87.78726539,137.52,137.46,0.32303777]
[1767900351381,87.78726539,137.52,137.46,7.11700406]
[1767900351687,87.78726539,137.52,137.48,6.5522]
[1767900351878,85.98,137.52,137.48,6.5522]
[1767900359286,1.80726539,137.53,137.48,6.5522]
[1767900359485,85.98,137.52,137.48,6.5522]
[1767900360692,1.26582278,137.59,137.48,0.32303777]
[1767900360986,1.80726539,137.56,137.49,0.32303777]
[1767900361188,85.98,137.55,137.49,0.32303777]
[1767900362588,85.98,137.55,137.51,6.5508]
[1767900363479,85.98,137.55,137.52,6.5503]
[1767900366393,85.98,137.55,137.53,6.5498]
[1767900370089,85.98,137.57,137.53,6.5498]
[1767900370295,1.80726539,137.58,137.53,6.5498]
[1767900370497,85.98,137.57,137.53,6.5498]
[1767900374597,85.96,137.6,137.54,0.32328204]
[1767900375602,85.96,137.6,137.56,6.5484]
[1767900376100,87.76726539,137.6,137.54,6.5494]
[1767900376694,1.80726539,137.6,137.54,6.5494]
[1767900377002,85.96,137.59,137.54,6.5494]
[1767900377702,1.80726539,137.6,137.54,6.5494]
[1767900377892,85.96,137.59,137.54,6.5494]
[1767900379402,1.80726539,137.58,137.54,6.5494]
[1767900380607,85.96,137.59,137.54,6.5494]
[1767900381801,2.82317176,137.62,137.54,0.32328204]
[1767900382306,85.96,137.61,137.54,0.32328204]
[1767900382699,85.96,137.61,137.56,6.5483]
[1767900383305,85.96,137.61,137.54,0.32328204]
[1767900384208,85.96,137.61,137.55,6.5489]